bitfinex/quotes_BTCUSD_20250813
["timestamp","ask_amount","ask_price","bid_price","bid_amount"]
[1755079993745,1.48935352,120230.0,120220.0,0.49942034]
[1755079993955,1.89698295,120230.0,120220.0,0.63586034]
[1755079994168,1.89698295,120230.0,120220.0,0.59746214]
[1755079995667,1.89698295,120230.0,120220.0,0.90038214]
[1755079996346,1.80955295,120230.0,120220.0,0.90038214]
[1755079996563,1.80955295,120230.0,120220.0,0.76374214]
[1755079996772,1.89698295,120230.0,120220.0,0.75374214]
[1755079996982,1.92191895,120230.0,120220.0,0.33687252]
[1755079997189,1.92191895,120230.0,120220.0,0.20035252]
[1755079997403,1.92191895,120230.0,120220.0,0.33687252]
[1755079997842,1.92191895,120230.0,120220.0,0.33679252]
[1755079998055,1.92191895,120230.0,120220.0,0.20035252]
[1755079998267,1.92191895,120230.0,120220.0,0.33660081]
[1755079998480,1.92791895,120230.0,120220.0,0.33660081]
[1755079998703,1.16466009,120230.0,120220.0,0.33660081]
[1755079998894,1.92991895,120230.0,120220.0,0.33660081]
[1755079999588,1.98784175,120230.0,120220.0,0.33660081]
[1755079999801,1.92991895,120230.0,120220.0,0.33660081]
[1755080000225,0.075,120210.0,120200.0,0.18]
[1755080000459,1.43301354,120210.0,120200.0,0.30932]
[1755080000666,1.47615393,120210.0,120200.0,0.30932]
[1755080001305,1.47615393,120210.0,120200.0,0.44556]
[1755080001518,1.47715309,120210.0,120200.0,0.44656]
[1755080001928,1.08697268,120210.0,120200.0,0.31032]
[1755080002138,1.08696945,120210.0,120200.0,0.44652]
[1755080002349,1.25410718,120210.0,120200.0,0.111]
[1755080002578,0.88910718,120210.0,120200.0,0.111]
[1755080002787,0.53147775,120210.0,120200.0,0.24712]
[1755080003319,0.53147775,120210.0,120200.0,0.24708]
[1755080003977,0.53147775,120210.0,120200.0,0.111]
[1755080004193,0.53047775,120210.0,120200.0,0.11]
[1755080004422,0.53047775,120210.0,120200.0,0.24604]
[1755080004638,0.53147775,120210.0,120200.0,0.24604]
[1755080005583,0.53147775,120210.0,120200.0,0.34968]
[1755080005809,0.53147775,120210.0,120200.0,0.63176325]
[1755080006032,0.53147775,120210.0,120200.0,0.96452325]
[1755080006249,0.53147775,120210.0,120200.0,0.9497199]
[1755080007352,0.53147775,120210.0,120200.0,0.94088468]
[1755080009384,0.53147775,120210.0,120200.0,0.83692468]
[1755080010161,0.53147775,120210.0,120200.0,0.70120468]
[1755080010520,0.53147775,120210.0,120200.0,0.63752468]
[1755080010721,0.53150122,120210.0,120200.0,0.50184468]
[1755080010974,0.53150122,120210.0,120200.0,0.63752468]
[1755080011537,0.50650122,120210.0,120200.0,0.50184468]
[1755080012152,0.53150122,120210.0,120200.0,0.97768468]
[1755080012356,0.53150122,120210.0,120200.0,0.97764468]
[1755080013187,0.53150122,120210.0,120200.0,0.84184468]
[1755080013188,0.53150337,120210.0,120200.0,0.84184468]
[1755080013394,0.53150337,120210.0,120200.0,0.97760468]
[1755080014460,0.516,120210.0,120200.0,0.97760468]
[1755080015521,0.516,120210.0,120200.0,0.84184468]
[1755080015735,0.516,120210.0,120200.0,1.28032468]
[1755080018586,0.516,120210.0,120200.0,1.17668468]
[1755080020619,0.516,120210.0,120200.0,0.97712468]
[1755080023630,0.516,120210.0,120200.0,0.84184468]
[1755080023837,0.516,120210.0,120200.0,0.97696468]
[1755080024066,0.516,120210.0,120200.0,0.97688468]
[1755080024755,0.516,120210.0,120200.0,0.84184468]
[1755080024979,0.516,120210.0,120200.0,0.97684468]
[1755080025193,0.516,120210.0,120200.0,0.84184468]
[1755080025409,0.516,120210.0,120200.0,0.97676468]
[1755080025632,0.516,120210.0,120200.0,1.14480468]
[1755080026073,0.516,120210.0,120200.0,1.27972468]
[1755080026298,0.516,120210.0,120200.0,1.17604468]
[1755080026516,0.366,120210.0,120200.0,1.04116468]
[1755080026765,0.556,120210.0,120200.0,0.84184468]
[1755080027005,0.556,120210.0,120200.0,0.97672468]
[1755080027222,0.556,120210.0,120200.0,0.84184468]
[1755080027463,0.556,120210.0,120200.0,0.97668468]
[1755080027676,0.556,120210.0,120200.0,0.97664468]
[1755080028521,0.556,120210.0,120200.0,0.97660468]
[1755080029352,0.55921,120210.0,120200.0,0.97660468]
[1755080031073,0.55921,120210.0,120200.0,0.84184468]
[1755080031297,0.55921,120210.0,120200.0,0.97636468]
[1755080031506,0.55921,120210.0,120200.0,0.97632468]
[1755080032510,0.55921,120210.0,120200.0,0.84184468]
[1755080032718,0.556,120210.0,120200.0,0.84184468]
[1755080033153,0.556,120210.0,120200.0,0.97620468]
[1755080034002,0.55921,120210.0,120200.0,0.97620468]
[1755080034214,0.56119,120210.0,120200.0,0.84184468]
[1755080034669,0.56119,120210.0,120200.0,0.97632468]
[1755080034670,0.56110001,120210.0,120200.0,0.97632468]
[1755080034876,0.56110001,120210.0,120200.0,0.84184468]
[1755080035080,0.56110001,120210.0,120200.0,0.97628468]
[1755080035500,0.56110001,120210.0,120200.0,1.27924468]
[1755080036121,0.56110001,120210.0,120200.0,1.14480468]
[1755080036326,0.56110001,120210.0,120200.0,1.27924468]
[1755080040108,0.56110001,120210.0,120200.0,1.04116468]
[1755080040229,0.56110001,120210.0,120200.0,1.17556468]
[1755080042232,0.51110001,120210.0,120200.0,1.19920325]
[1755080042651,0.51110001,120210.0,120200.0,0.99988325]
[1755080043142,0.50591001,120210.0,120200.0,0.99984325]
[1755080043791,0.50897001,120210.0,120200.0,0.99984325]
[1755080044212,0.50806,120210.0,120200.0,1.00084325]
[1755080044421,0.505,120210.0,120200.0,0.86648325]
[1755080044639,0.505,120210.0,120200.0,1.00084325]
[1755080045092,0.505,120210.0,120200.0,0.86648325]
[1755080045295,0.48,120210.0,120200.0,1.07605947]
[1755080045740,0.48,120210.0,120200.0,1.48261947]
[1755080046212,0.48,120210.0,120200.0,1.34841947]
[1755080046438,0.48,120210.0,120200.0,1.58261947]
[1755080047102,0.48,120210.0,120200.0,1.60754047]
[1755080047545,0.48,120210.0,120200.0,1.60654047]
[1755080047755,0.48,120210.0,120200.0,1.37170047]
[1755080047966,0.48,120210.0,120200.0,1.50986047]
[1755080048583,0.48,120210.0,120200.0,1.18162489]
[1755080048931,0.48,120210.0,120200.0,1.04758489]
[1755080049146,0.48,120210.0,120200.0,1.18158489]
[1755080051791,0.48,120210.0,120200.0,1.19847165]
[1755080053927,0.48,120210.0,120200.0,1.17574003]
[1755080054992,0.48,120210.0,120200.0,1.15885327]
[1755080055540,0.48,120210.0,120200.0,1.26245327]
[1755080055756,0.48,120210.0,120200.0,1.56533327]
[1755080056278,0.48,120210.0,120200.0,1.46173327]
[1755080059052,0.48,120210.0,120200.0,1.06574247]
[1755080059286,0.48,120210.0,120200.0,1.19938247]
[1755080059775,0.48,120210.0,120200.0,1.22066]
[1755080060635,0.48,120210.0,120200.0,1.08702]
[1755080060842,0.48,120210.0,120200.0,1.22066]
[1755080061931,0.48,120210.0,120200.0,1.22054]
[1755080062142,0.48,120210.0,120200.0,0.96702]
[1755080062379,0.48,120210.0,120200.0,1.08702]
[1755080062634,0.48,120210.0,120200.0,1.2205]
[1755080063484,0.48,120210.0,120200.0,1.08702]
[1755080063696,0.48,120210.0,120200.0,1.22042]
[1755080065697,0.48,120210.0,120200.0,1.62686]
[1755080066350,0.48,120210.0,120200.0,1.52314]
[1755080067333,0.48,120210.0,120200.0,1.28626]
[1755080067540,0.48,120210.0,120200.0,1.4694]
[1755080067755,0.48,120210.0,120200.0,1.4195]
[1755080068613,0.48,120210.0,120200.0,1.08702]
[1755080068820,0.48,120210.0,120200.0,1.22034]
[1755080069484,0.47169636,120210.0,120200.0,2.396661]
[1755080069702,0.46339272,120210.0,120200.0,2.396661]
[1755080070118,0.45508908,120210.0,120200.0,2.396661]
[1755080070544,0.44678544,120210.0,120200.0,2.396661]
[1755080070852,0.4384818,120210.0,120200.0,1.481775]
[1755080071244,0.43017816,120210.0,120200.0,1.481775]
[1755080071688,0.41458708,120210.0,120200.0,1.481495]
[1755080072103,0.4049579,120210.0,120200.0,1.481495]
[1755080072484,0.39665426,120210.0,120200.0,1.478495]
[1755080072686,0.39530037,120210.0,120200.0,1.474495]
[1755080072880,0.38699693,120210.0,120200.0,1.478495]
[1755080073086,0.38699693,120210.0,120200.0,1.484495]
[1755080073293,0.00298,120240.0,120210.0,0.36576779]
[1755080073494,0.50298,120240.0,120230.0,0.42272325]
[1755080073719,0.50496,120240.0,120230.0,1.10834325]
[1755080074066,0.50496,120240.0,120230.0,1.13325525]
[1755080074289,0.50496,120240.0,120230.0,1.02306687]
[1755080074476,0.50496,120240.0,120230.0,1.18118245]
[1755080074629,0.50496,120240.0,120230.0,1.18418245]
[1755080075354,0.50496,120240.0,120230.0,1.18414245]
[1755080075558,0.5,120240.0,120230.0,1.59058245]
[1755080075751,0.50496,120240.0,120230.0,1.48690245]
[1755080075925,0.50496,120240.0,120230.0,1.48686245]
[1755080077120,0.50496,120240.0,120230.0,1.38326245]
[1755080077337,0.50496,120240.0,120230.0,1.3940692]
[1755080078369,0.50496,120240.0,120230.0,1.36887362]
[1755080078581,0.50496,120240.0,120230.0,1.346142]
[1755080079215,0.50496,120240.0,120230.0,1.146902]
[1755080080797,0.50496,120240.0,120230.0,1.014142]
[1755080080986,0.54681,120240.0,120230.0,1.16427102]
[1755080081401,0.54681,120240.0,120230.0,1.03159102]
[1755080081887,0.54681,120240.0,120230.0,0.674142]
[1755080082059,0.54681,120240.0,120230.0,0.64923]
[1755080082270,0.57181,120240.0,120230.0,0.78191]
[1755080082909,0.57181,120240.0,120230.0,0.64923]
[1755080083140,0.57181,120240.0,120230.0,0.78191]
[1755080083674,0.57181,120240.0,120230.0,0.64923]
[1755080083874,0.57181,120240.0,120230.0,0.78191]
[1755080085678,0.57181,120240.0,120230.0,1.29203]
[1755080085886,0.57181,120240.0,120230.0,1.42471]
[1755080086506,0.57181,120240.0,120230.0,0.98923]
[1755080086927,0.57181,120240.0,120230.0,1.12191]
[1755080089149,0.57181,120240.0,120230.0,0.98923]
[1755080089351,0.57181,120240.0,120230.0,1.12191]
[1755080091346,0.57181,120240.0,120230.0,0.98923]
[1755080091542,0.57181,120240.0,120230.0,1.12191]
[1755080091891,0.57181,120240.0,120230.0,0.98923]
[1755080092102,0.57181,120240.0,120230.0,1.12191]
[1755080093279,0.57181,120240.0,120230.0,1.12158482]
[1755080093494,0.57181,120240.0,120230.0,0.8957]
[1755080093704,0.57181,120240.0,120230.0,1.02838]
[1755080094351,0.57181,120240.0,120230.0,0.92838]
[1755080095010,0.57181,120240.0,120230.0,0.92538]
[1755080095258,0.95454403,120240.0,120230.0,0.4527]
[1755080095507,0.57281,120240.0,120230.0,0.58538]
[1755080095734,0.95654403,120240.0,120230.0,0.88822]
[1755080095960,0.99237185,120240.0,120230.0,0.88822]
[1755080096411,0.60963782,120240.0,120230.0,0.88822]
[1755080096630,0.60963782,120240.0,120230.0,0.75554]
[1755080096631,0.99237185,120240.0,120230.0,0.75554]
[1755080096860,0.99237185,120240.0,120230.0,0.65194]
[1755080097080,0.99237185,120240.0,120230.0,0.78462]
[1755080097329,0.99237185,120240.0,120230.0,0.65194]
[1755080097541,0.99237185,120240.0,120230.0,0.78462]
[1755080098670,1.1625251,120240.0,120230.0,0.4527]
[1755080099108,1.1875251,120240.0,120230.0,0.58538]
[1755080100195,1.1875251,120240.0,120230.0,0.4527]
[1755080100416,1.1875251,120240.0,120230.0,0.58538]
[1755080100667,1.1875251,120240.0,120230.0,0.4527]
[1755080100873,1.1875251,120240.0,120230.0,0.58538]
[1755080101366,1.1000951,120240.0,120230.0,0.58538]
[1755080101583,1.14254412,120240.0,120230.0,0.4627]
[1755080101790,1.50754412,120240.0,120230.0,0.4627]
[1755080101999,1.59497412,120240.0,120230.0,0.59538]
[1755080103468,1.58646717,120240.0,120230.0,0.59538]
[1755080103673,1.60846717,120240.0,120230.0,0.59538]
[1755080103874,1.60846717,120240.0,120230.0,0.4627]
[1755080104077,1.61546717,120240.0,120230.0,0.4627]
[1755080104289,1.61546717,120240.0,120230.0,0.59538]
[1755080104497,1.61546717,120240.0,120230.0,0.4627]
[1755080104703,1.61546717,120240.0,120230.0,0.59538]
[1755080105747,1.61546717,120240.0,120230.0,0.89826]
[1755080106067,1.59046717,120240.0,120230.0,0.89826]
[1755080106365,1.61546717,120240.0,120230.0,0.76558]
[1755080106626,1.50303717,120240.0,120230.0,0.89826]
[1755080106858,1.52803717,120240.0,120230.0,0.89826]
[1755080107080,1.52803717,120240.0,120230.0,0.76558]
[1755080107289,1.14530314,120240.0,120230.0,0.89826]
[1755080107500,1.52803717,120240.0,120230.0,0.89826]
[1755080108356,1.50303717,120240.0,120230.0,0.89826]
[1755080108567,1.52803717,120240.0,120230.0,0.89826]
[1755080109005,1.51058815,120240.0,120230.0,0.89826]
[1755080109226,1.52803717,120240.0,120230.0,0.89826]
[1755080109886,1.50303717,120240.0,120230.0,0.89826]
[1755080110560,1.48754412,120240.0,120230.0,0.89826]
[1755080110820,1.50300562,120240.0,120230.0,0.89826]
[1755080111044,1.1205566,120240.0,120230.0,0.74558]
[1755080111262,1.12055428,120240.0,120230.0,0.87826]
[1755080111496,0.72691743,120240.0,120230.0,0.64198]
[1755080111738,0.57734418,120240.0,120230.0,0.77466]
[1755080111974,0.57036418,120240.0,120230.0,0.64198]
[1755080112192,0.56538418,120240.0,120230.0,0.57538]
[1755080112745,0.528,120240.0,120230.0,0.4427]
[1755080112977,0.528,120240.0,120230.0,0.57538]
[1755080113879,0.54746806,120240.0,120230.0,0.57538]
[1755080115654,0.54746806,120240.0,120230.0,0.87834]
[1755080119625,0.54746806,120240.0,120230.0,0.7747]
[1755080119874,0.54749034,120240.0,120230.0,0.7747]
[1755080120497,0.54749381,120240.0,120230.0,0.7747]
[1755080123202,0.55067381,120240.0,120230.0,0.7747]
[1755080124920,0.55067381,120240.0,120230.0,0.57534]
[1755080125135,0.54749381,120240.0,120230.0,0.57534]
[1755080125626,0.54749381,120240.0,120230.0,0.67898]
[1755080125877,0.54749381,120240.0,120230.0,0.87826]
[1755080127778,0.54749381,120240.0,120230.0,0.73470325]
[1755080127981,0.532,120240.0,120230.0,0.86734325]
[1755080128613,0.529,120240.0,120230.0,0.86734325]
[1755080129031,0.526,120240.0,120230.0,0.86734325]
[1755080129463,0.528,120240.0,120230.0,0.66806325]
[1755080130309,0.527,120240.0,120230.0,0.66806325]
[1755080130944,0.527,120240.0,120230.0,1.00806325]
[1755080131179,0.525,120240.0,120230.0,1.00806325]
[1755080131377,0.526,120240.0,120230.0,1.00806325]
[1755080131586,0.526,120240.0,120230.0,1.00802325]
[1755080132890,0.526,120240.0,120230.0,0.87542325]
[1755080133108,0.526,120240.0,120230.0,1.00802325]
[1755080133560,0.526,120240.0,120230.0,1.02547227]
[1755080134227,0.526,120240.0,120230.0,0.89287227]
[1755080134439,0.526,120240.0,120230.0,1.02547227]
[1755080135530,0.526,120240.0,120230.0,1.12907227]
[1755080135745,0.526,120240.0,120230.0,1.32835227]
[1755080136190,0.52159205,120240.0,120230.0,1.32835227]
[1755080136643,0.52159205,120240.0,120230.0,1.31090325]
[1755080136856,0.52159205,120240.0,120230.0,1.32835227]
[1755080137860,0.52159205,120240.0,120230.0,1.02547227]
[1755080138071,0.52159205,120240.0,120230.0,1.12547227]
[1755080138709,0.52059205,120240.0,120230.0,1.12547227]
[1755080139802,0.52059205,120240.0,120230.0,1.14978692]
[1755080140218,0.52059205,120240.0,120230.0,1.12547227]
[1755080141417,0.52059205,120240.0,120230.0,0.99287227]
[1755080141636,0.49559205,120240.0,120230.0,0.87287227]
[1755080141845,0.49559205,120240.0,120230.0,0.99287227]
[1755080142016,0.49559205,120240.0,120230.0,1.12547227]
[1755080142227,0.49559205,120240.0,120230.0,0.99287227]
[1755080142429,0.49559205,120240.0,120230.0,1.12547227]
[1755080143730,0.49559205,120240.0,120230.0,1.15038727]
[1755080144142,0.49559205,120240.0,120230.0,1.17504069]
[1755080145606,0.49559205,120240.0,120230.0,1.47788069]
[1755080147974,0.49559205,120240.0,120230.0,1.34528069]
[1755080148184,0.49559205,120240.0,120230.0,1.37424069]
[1755080149712,0.49559205,120240.0,120230.0,1.21495286]
[1755080149917,0.49559205,120240.0,120230.0,1.19222124]
[1755080151163,0.49559205,120240.0,120230.0,1.19422124]
[1755080152135,0.49559205,120240.0,120230.0,1.19622124]
[1755080155605,0.49559205,120240.0,120230.0,1.49902124]
[1755080156984,0.49559205,120240.0,120230.0,1.39542124]
[1755080157612,0.49559205,120240.0,120230.0,1.19622124]
[1755080159731,0.38433882,120240.0,120230.0,1.21158818]
[1755080160378,0.38433882,120240.0,120230.0,1.21895239]
[1755080160542,0.38433882,120240.0,120230.0,1.23431911]
[1755080162353,0.38749882,120240.0,120230.0,1.06180741]
[1755080162563,0.38433882,120240.0,120230.0,1.2631626]
[1755080162772,0.38433882,120240.0,120230.0,2.3279886]
[1755080162976,0.38433882,120240.0,120230.0,2.4605086]
[1755080163427,0.38433882,120240.0,120230.0,2.4585086]
[1755080164324,0.38433882,120240.0,120230.0,2.4565086]
[1755080164530,0.38433882,120240.0,120230.0,2.4605086]
[1755080165153,0.38433882,120240.0,120230.0,2.4635086]
[1755080165391,0.38433882,120240.0,120230.0,2.44814188]
[1755080165581,0.38433882,120240.0,120230.0,2.85446188]
[1755080166183,0.38433882,120240.0,120230.0,2.75090188]
[1755080168366,0.38433882,120240.0,120230.0,2.64885888]
[1755080169103,0.38433882,120240.0,120230.0,2.63140986]
[1755080169858,0.38433882,120240.0,120230.0,2.64885888]
[1755080170299,0.38433882,120240.0,120230.0,2.34609888]
[1755080170553,0.38433882,120240.0,120230.0,2.19042688]
[1755080170776,0.38433882,120240.0,120230.0,1.48323988]
[1755080172296,0.38433882,120240.0,120230.0,1.46173988]
[1755080172495,0.38433882,120240.0,120230.0,1.37228888]
[1755080172707,0.38433882,120240.0,120230.0,1.35483986]
[1755080172916,0.38433882,120240.0,120230.0,1.37228888]
[1755080174152,0.38433882,120240.0,120230.0,1.3505877]
[1755080175589,0.38433882,120240.0,120230.0,1.7568677]
[1755080175798,0.37435575,120240.0,120230.0,1.5457877]
[1755080176057,0.0006,120270.0,120240.0,0.02576571]
[1755080176058,0.00316,120250.0,120240.0,0.02576571]
[1755080176271,0.46522,120250.0,120240.0,0.66217608]
[1755080176468,0.46522,120250.0,120240.0,0.79363896]
[1755080176851,0.46522,120250.0,120240.0,0.62539325]
[1755080177068,0.50565,120250.0,120240.0,0.75787325]
[1755080177487,0.50565,120250.0,120240.0,1.09787325]
[1755080177700,0.50565,120250.0,120240.0,0.75787325]
[1755080177901,0.50565,120250.0,120240.0,0.75987325]
[1755080178526,0.50565,120250.0,120240.0,0.64484227]
[1755080178731,0.50565,120250.0,120240.0,1.10287325]
[1755080179207,0.50565,120250.0,120240.0,0.97039325]
[1755080179432,0.50565,120250.0,120240.0,1.10287325]
[1755080179650,0.50565,120250.0,120240.0,1.12032227]
[1755080180088,0.50565,120250.0,120240.0,1.15426108]
[1755080180290,0.50565,120250.0,120240.0,1.12032227]
[1755080183731,0.50565,120250.0,120240.0,0.98784227]
[1755080183952,0.50565,120250.0,120240.0,1.12032227]
[1755080184379,0.46522,120250.0,120240.0,1.12032227]
[1755080184617,0.46522,120250.0,120240.0,0.98484227]
[1755080184831,0.46522,120250.0,120240.0,0.98284227]
[1755080185050,0.46522,120250.0,120240.0,0.98384227]
[1755080185272,0.46522,120250.0,120240.0,1.11632227]
[1755080185695,0.46522,120250.0,120240.0,1.41908227]
[1755080187299,0.50565,120250.0,120240.0,1.18304227]
[1755080187509,0.50565,120250.0,120240.0,0.98384227]
[1755080187724,0.50565,120250.0,120240.0,1.11632227]
[1755080187937,0.53065,120250.0,120240.0,1.00875427]
[1755080188140,0.53065,120250.0,120240.0,1.14123427]
[1755080188809,0.48816,120250.0,120240.0,1.14123427]
[1755080189014,0.46,120250.0,120240.0,1.34768764]
[1755080189228,0.46,120250.0,120240.0,1.01875427]
[1755080189660,0.46,120250.0,120240.0,1.15123427]
[1755080189901,0.46,120250.0,120240.0,1.15023427]
[1755080190123,0.46,120250.0,120240.0,1.22512464]
[1755080190354,0.46,120250.0,120240.0,1.35760464]
[1755080191032,0.46,120250.0,120240.0,1.35756464]
[1755080191464,0.46,120250.0,120240.0,1.35456464]
[1755080191670,0.46,120250.0,120240.0,1.35856464]
[1755080192124,0.46,120250.0,120240.0,1.38581958]
[1755080192559,0.46,120250.0,120240.0,1.22696158]
[1755080192981,0.46,120250.0,120240.0,1.27679158]
[1755080193201,0.46,120250.0,120240.0,1.22696158]
[1755080195421,0.46,120250.0,120240.0,1.09452158]
[1755080195621,0.46,120250.0,120240.0,1.63324158]
[1755080195895,0.46,120250.0,120240.0,1.61046036]
[1755080197504,0.46,120250.0,120240.0,1.58772921]
[1755080198539,0.4520686,120250.0,120240.0,1.04900921]
[1755080198752,0.4551786,120250.0,120240.0,1.18144921]
[1755080199836,0.4551786,120250.0,120240.0,1.02575427]
[1755080200088,0.4551786,120250.0,120240.0,1.15815427]
[1755080200306,0.4551786,120250.0,120240.0,1.02575427]
[1755080200528,0.4551786,120250.0,120240.0,1.15815427]
[1755080201179,0.4551786,120250.0,120240.0,1.15792737]
[1755080201886,0.4551786,120250.0,120240.0,1.15378174]
[1755080202066,0.4551786,120250.0,120240.0,1.1476149]
[1755080202518,0.4551786,120250.0,120240.0,1.1436149]
[1755080202990,0.4551786,120250.0,120240.0,1.0102149]
[1755080203195,0.4551786,120250.0,120240.0,1.1446149]
[1755080204696,0.4551786,120250.0,120240.0,1.0122149]
[1755080204916,0.4551786,120250.0,120240.0,1.1446149]
[1755080205771,0.4551786,120250.0,120240.0,1.4473349]
[1755080206190,0.4985686,120250.0,120240.0,1.4473349]
[1755080206644,0.5235686,120250.0,120240.0,1.2113749]
[1755080206859,0.5235686,120250.0,120240.0,1.1446149]
[1755080207047,0.5235686,120250.0,120240.0,1.0122149]
[1755080207260,0.5235686,120250.0,120240.0,0.99476588]
[1755080207480,0.5235686,120250.0,120240.0,1.0122149]
[1755080207681,0.5235686,120250.0,120240.0,1.1446149]
[1755080208077,0.5235686,120250.0,120240.0,1.1426149]
[1755080208580,0.4500386,120250.0,120240.0,1.1396149]
[1755080208934,0.4500386,120250.0,120240.0,0.9872149]
[1755080209147,0.4500386,120250.0,120240.0,0.98230211]
[1755080209398,0.4500386,120250.0,120240.0,1.11470211]
[1755080209810,0.4500386,120250.0,120240.0,1.11370211]
[1755080210216,0.4500386,120250.0,120240.0,1.11770211]
[1755080210855,0.4500386,120250.0,120240.0,0.98530211]
[1755080211076,0.4500386,120250.0,120240.0,1.16397959]
[1755080211211,0.4500386,120250.0,120240.0,1.03161959]
[1755080211421,0.4500386,120250.0,120240.0,1.05435074]
[1755080211643,0.4500386,120250.0,120240.0,1.18671074]
[1755080212064,0.4500386,120250.0,120240.0,1.16926172]
[1755080212235,0.4500386,120250.0,120240.0,1.18671074]
[1755080213243,0.44173547,120250.0,120240.0,1.06238705]
[1755080213453,0.44173547,120250.0,120240.0,1.19474705]
[1755080214556,0.44173547,120250.0,120240.0,2.39523405]
[1755080214754,0.44173547,120250.0,120240.0,2.39123405]
[1755080215202,0.44173547,120250.0,120240.0,2.39523405]
[1755080215639,0.44173547,120250.0,120240.0,2.79751405]
[1755080217176,0.44173547,120250.0,120240.0,2.80151405]
[1755080218278,0.44173547,120250.0,120240.0,2.59439405]
[1755080218676,0.44173547,120250.0,120240.0,2.59435405]
[1755080218835,0.44173547,120250.0,120240.0,2.57109911]
[1755080220721,0.44173547,120250.0,120240.0,2.37193911]
[1755080221580,0.43343474,120250.0,120240.0,2.37193911]
[1755080221961,0.42513401,120250.0,120240.0,2.37193911]
[1755080222350,0.41683328,120250.0,120240.0,2.37193911]
[1755080224017,0.41683328,120250.0,120240.0,2.37189911]
[1755080225576,0.41683328,120250.0,120240.0,2.77817911]
[1755080225977,0.41683328,120250.0,120240.0,2.67461911]
[1755080226186,0.41683328,120250.0,120240.0,2.61753011]
[1755080226527,0.41683328,120250.0,120240.0,2.59677911]
[1755080226968,0.41683328,120250.0,120240.0,2.57295211]
[1755080228355,0.41683328,120250.0,120240.0,2.49612111]
[1755080229640,0.41683328,120250.0,120240.0,2.38763611]
[1755080230042,0.41683328,120250.0,120240.0,2.08491611]
[1755080230329,0.41683328,120250.0,120240.0,2.02562411]
[1755080230979,0.41683328,120250.0,120240.0,1.94581511]
[1755080231114,0.41683328,120250.0,120240.0,1.47242211]
[1755080231320,0.42204328,120250.0,120240.0,0.98930211]
[1755080231537,0.42204328,120250.0,120240.0,1.12154211]
[1755080232058,0.42204328,120250.0,120240.0,1.12131522]
[1755080232273,0.41208258,120250.0,120240.0,1.12131522]
[1755080232687,0.41208258,120250.0,120240.0,1.27748922]
[1755080233729,0.41208258,120250.0,120240.0,1.25081322]
[1755080234775,0.41208258,120250.0,120240.0,0.98907522]
[1755080235088,0.41208258,120250.0,120240.0,1.12127522]
[1755080235662,0.41208258,120250.0,120240.0,1.52755522]
[1755080236231,0.41208258,120250.0,120240.0,1.29179522]
[1755080236430,0.41208258,120250.0,120240.0,1.42399522]
[1755080237155,0.41208258,120250.0,120240.0,1.4065462]
[1755080237756,0.40687258,120250.0,120240.0,1.18823522]
[1755080238191,0.40687258,120250.0,120240.0,1.32043522]
[1755080238581,0.40997258,120250.0,120240.0,1.32043522]
[1755080239220,0.41208258,120250.0,120240.0,1.32043522]
[1755080239648,0.40997258,120250.0,120240.0,1.32043522]
[1755080240089,0.40997258,120250.0,120240.0,1.12127522]
[1755080240351,0.41208258,120250.0,120240.0,1.12127522]
[1755080240817,0.41208258,120250.0,120240.0,1.13743047]
[1755080241838,0.40997258,120250.0,120240.0,1.13743047]
[1755080242046,0.40997258,120250.0,120240.0,1.12127522]
[1755080242250,0.41208258,120250.0,120240.0,1.12127522]
[1755080243529,0.41208258,120250.0,120240.0,1.17110522]
[1755080243744,0.41308258,120250.0,120240.0,1.3597653]
[1755080245574,0.41308258,120250.0,120240.0,1.5668853]
[1755080245830,0.41308258,120250.0,120240.0,1.7660453]
[1755080246497,0.41097258,120250.0,120240.0,1.7660453]
[1755080247360,0.41308258,120250.0,120240.0,1.7660453]
[1755080248104,0.41308258,120250.0,120240.0,1.5589253]
[1755080248637,0.41308258,120250.0,120240.0,1.2275653]
[1755080248865,0.41308258,120250.0,120240.0,1.3596853]
[1755080249124,0.41308258,120250.0,120240.0,1.3596453]
[1755080249125,0.40787258,120250.0,120240.0,1.3596453]
[1755080249632,0.40787258,120250.0,120240.0,1.39752211]
[1755080249858,0.41089258,120250.0,120240.0,1.39752211]
[1755080250711,0.41303258,120250.0,120240.0,1.39752211]
[1755080251126,0.41303258,120250.0,120240.0,1.38237645]
[1755080251875,0.41303258,120250.0,120240.0,1.25029645]
[1755080252088,0.41303258,120250.0,120240.0,1.3596453]
[1755080254900,0.41303258,120250.0,120240.0,1.2275653]
[1755080255325,0.41303258,120250.0,120240.0,1.3596053]
[1755080255614,0.41303258,120250.0,120240.0,1.7658853]
[1755080257252,0.41303258,120250.0,120240.0,1.6623253]
[1755080257460,0.40787258,120250.0,120240.0,1.45272522]
[1755080257640,0.40787258,120250.0,120240.0,1.61124875]
[1755080257836,0.40787258,120250.0,120240.0,1.47924875]
[1755080258035,0.40787258,120250.0,120240.0,1.61124875]
[1755080258226,0.40787258,120250.0,120240.0,1.41208875]
[1755080260558,0.40787258,120250.0,120240.0,1.40555121]
[1755080261834,0.40787258,120250.0,120240.0,1.41103283]
[1755080263519,0.40787258,120250.0,120240.0,1.27903283]
[1755080263742,0.40787258,120250.0,120240.0,1.41099283]
[1755080264088,0.41303258,120250.0,120240.0,1.25082006]
[1755080264300,0.41303258,120250.0,120240.0,1.38278006]
[1755080264700,0.41303258,120250.0,120240.0,1.25082006]
[1755080264948,0.41303258,120250.0,120240.0,1.38278006]
[1755080265460,0.41303258,120250.0,120240.0,1.40551121]
[1755080265671,0.41303258,120250.0,120240.0,1.57330113]
[1755080266707,0.41303258,120250.0,120240.0,1.46974113]
[1755080267068,0.41303258,120250.0,120240.0,1.44700998]
[1755080268146,0.41089258,120250.0,120240.0,1.44700998]
[1755080268730,0.41089258,120250.0,120240.0,1.14428998]
[1755080272838,0.41303258,120250.0,120240.0,1.14428998]
[1755080275577,0.41303258,120250.0,120240.0,1.35140998]
[1755080275791,0.41303258,120250.0,120240.0,1.66039222]
[1755080276040,0.41303258,120250.0,120240.0,1.42499222]
[1755080276254,0.41303258,120250.0,120240.0,1.55683222]
[1755080277331,0.41303258,120250.0,120240.0,1.22583222]
[1755080277506,0.45157258,120250.0,120240.0,1.35767222]
[1755080278037,0.45157258,120250.0,120240.0,0.8434712]
[1755080278259,0.45157258,120250.0,120240.0,0.9753112]
[1755080278481,0.45157258,120250.0,120240.0,0.8434712]
[1755080278717,0.45157258,120250.0,120240.0,0.9752712]
[1755080279135,0.45157258,120250.0,120240.0,0.9712712]